fUSD/lending_fUSD_20250911
["ID","MTS","AMOUNT","RATE_DAILY","PERIOD"]
[384901375,1757623645867,-1000.0,0.00027287,2]
[384901376,1757623645888,-1837.9195,0.00027287,2]
[384901377,1757623645913,-11266.59635381,0.00027296,2]
[384901378,1757623645936,-3965.05220313,0.00027296,2]
[384901379,1757623645961,-157.82079385,0.00027296,2]
[384901380,1757623645983,-308.25371043,0.00027297,2]
[384901381,1757623646005,-171.66645942,0.00027297,2]
[384901382,1757623646027,-4647.05321156,0.00027339,2]
[384901383,1757623646059,-3965.05220304,0.00027357,2]
[384901384,1757623646086,-11266.59635374,0.00027363,2]
[384901385,1757623646108,-200.0,0.0002737,2]
[384901386,1757623646130,-322.6107,0.0002737,2]
[384901387,1757623646152,-151.0,0.0002737,2]
[384901388,1757623646174,-151.0,0.0002737,2]
[384901389,1757623646196,-151.0,0.0002737,2]
[384901390,1757623646219,-151.0,0.0002737,2]
[384901391,1757623646243,-151.0,0.0002737,2]
[384901392,1757623646265,-160.0,0.0002737,2]
[384901393,1757623646287,-151.0,0.0002737,2]
[384901394,1757623646312,-151.0,0.0002737,2]
[384901395,1757623646334,-500.0,0.0002737,2]
[384901396,1757623646358,-151.0,0.0002737,2]
[384901397,1757623646382,-151.0,0.0002737,2]
[384901398,1757623646405,-151.0,0.0002737,2]
[384901399,1757623646427,-151.0,0.0002737,2]
[384901400,1757623646450,-151.0,0.0002737,2]
[384901401,1757623646473,-670.58624095,0.0002737,2]
[384901402,1757623646497,-150.0,0.0002737,4]
[384901403,1757623646520,-150.0,0.0002737,4]
[384901404,1757623646546,-10517.0223323,0.0002737,2]
[384901405,1757623646574,-2814.6631443,0.0002737,2]
[384901406,1757623646596,-500.0,0.00027373,2]
[384901407,1757623646618,-276.16156714,0.00027373,2]
[384901408,1757623646640,-500.0,0.00027373,2]
[384901409,1757623646662,-500.0,0.00027373,2]
[384901410,1757623646688,-304.012,0.00027384,16]
[384901411,1757623646711,-1159.87,0.00027387,2]
[384901412,1757623646732,-323.07505595,0.00027387,2]
[384901413,1757623646756,-27616.1014658,0.00027387,2]
[384901414,1757623646781,-113874.9381062,0.00027387,2]
[384901699,1757623833058,-4345.1202396,0.000249,2]
[384901700,1757623833068,-212.89373682,0.00026674,2]
[384901701,1757623833077,-897.63302059,0.00027197,2]
[384901702,1757623833086,-300.0,0.00027296,2]
[384901703,1757623833096,-626.0,0.00027296,2]
[384901704,1757623833106,-5000.0,0.00027297,2]
[384901705,1757623833115,-1511.3102,0.00027297,2]
[384901706,1757623833125,-9013.27708301,0.00027297,2]
[384901707,1757623833134,-165.94337232,0.0002736,2]
[384901708,1757623833146,-17885.49725948,0.0002736,2]
[384901709,1757623833156,-9402.2256318,0.00027387,2]
[384901710,1757623833166,-215.38337063,0.00027387,2]
[384901711,1757623833176,-869.9,0.00027387,2]
[384901712,1757623833185,-157.65218205,0.00027387,2]
[384901713,1757623833195,-245.46,0.00027387,7]
[384901714,1757623833204,-9013.27708299,0.00027388,2]
[384901715,1757623833213,-300.0,0.0002739,2]
[384901716,1757623833222,-184.11345196,0.00027395,2]
[384901717,1757623833232,-999.99,0.00027396,2]
[384901718,1757623833241,-300.0,0.00027396,10]
[384901719,1757623833251,-307.39753443,0.00027396,10]
[384901720,1757623833260,-339.35978944,0.00027396,2]
[384901721,1757623833269,-1097.19758959,0.00027397,2]
[384901722,1757623833285,-291.24024442,0.00027397,2]
[384901723,1757623833310,-25336.69683343,0.00027397,2]
[384901724,1757623833321,-652.80160067,0.00027397,2]
[384901725,1757623833332,-934.382,0.00027397,2]
[384901726,1757623833372,-131689.80603068,0.00027397,2]
[384901727,1757623833381,-21531.6532671,0.00027397,2]
[384901728,1757623833391,-190.69786246,0.00027397,7]
[384901729,1757623833401,-400.0,0.00027397,7]
[384901730,1757623833411,-400.0,0.00027397,7]
[384901731,1757623833420,-400.0,0.00027397,7]
[384901732,1757623833429,-400.0,0.00027397,7]
[384901733,1757623833439,-400.0,0.00027397,7]
[384901734,1757623833449,-400.0,0.00027397,7]
[384901735,1757623833459,-400.0,0.00027397,7]
[384901736,1757623833468,-916.63,0.00027397,7]
[384901737,1757623833478,-400.0,0.00027397,7]
[384901738,1757623833487,-400.0,0.00027397,7]
[384901739,1757623833496,-214.20359352,0.00027397,7]
[384901740,1757623833505,-400.0,0.00027397,7]
[384901741,1757623833515,-400.0,0.00027397,7]
[384901742,1757623833524,-400.0,0.00027397,7]
[384901743,1757623833533,-400.0,0.00027397,7]
[384901744,1757623833542,-400.0,0.00027397,7]
[384901745,1757623833551,-400.0,0.00027397,7]
[384901746,1757623833560,-400.0,0.00027397,7]
[384901747,1757623833569,-400.0,0.00027397,7]
[384901748,1757623833578,-400.0,0.00027397,7]
[384901749,1757623833588,-400.0,0.00027397,7]
[384901750,1757623833600,-400.0,0.00027397,7]
[384901751,1757623833609,-400.0,0.00027397,7]
[384901752,1757623833618,-404.40340764,0.00027397,7]
[384901753,1757623833627,-547.0,0.00027397,7]
[384901754,1757623833636,-400.0,0.00027397,7]
[384901755,1757623833647,-1540.09,0.00027397,7]
[384901756,1757623833656,-400.0,0.00027397,7]
[384901757,1757623833667,-985.7,0.00027397,7]
[384901758,1757623833676,-400.0,0.00027397,7]
[384901759,1757623833686,-400.0,0.00027397,7]
[384901760,1757623833696,-674.83,0.00027397,7]
[384901761,1757623833706,-400.0,0.00027397,7]
[384901762,1757623833715,-355.44940674,0.00027397,7]
[384901763,1757623833724,-400.0,0.00027397,7]
[384901764,1757623833733,-400.0,0.00027397,7]
[384901765,1757623833742,-500.0,0.00027397,7]
[384901766,1757623833751,-400.0,0.00027397,7]
[384901767,1757623833762,-613.67,0.00027397,7]
[384901768,1757623833771,-400.0,0.00027397,7]
[384901769,1757623833780,-400.0,0.00027397,7]
[384901770,1757623833789,-1065.12,0.00027397,7]
[384901771,1757623833799,-400.0,0.00027397,7]
[384901772,1757623833808,-400.0,0.00027397,7]
[384901773,1757623833817,-400.0,0.00027397,7]
[384901774,1757623833827,-400.0,0.00027397,7]
[384901775,1757623833836,-1000.0,0.00027397,7]
[384901776,1757623833846,-400.0,0.00027397,2]
[384901777,1757623833855,-400.0,0.00027397,7]
[384901778,1757623833865,-400.0,0.00027397,7]
[384901779,1757623833875,-1822.46,0.00027397,7]
[384901780,1757623833884,-954.32080219,0.00027397,7]
[384901781,1757623833902,-884.79919781,0.00027397,7]
[384901782,1757623833912,-400.0,0.00027397,7]
[384901783,1757623833921,-407.50279285,0.00027397,7]
[384901784,1757623833931,-567.92,0.00027397,7]
[384901785,1757623833941,-653.38,0.00027397,7]
[384901786,1757623833950,-400.0,0.00027397,7]
[384901787,1757623833960,-400.0,0.00027397,7]
[384901788,1757623833969,-150.0,0.00027397,2]
[384901789,1757623833979,-400.0,0.00027397,7]
[384901790,1757623833988,-400.0,0.00027397,7]
[384901791,1757623833998,-485.75,0.00027397,7]
[384901792,1757623834007,-400.0,0.00027397,7]
[384901793,1757623834016,-400.0,0.00027397,7]
[384901794,1757623834025,-150.0,0.00027397,7]
[384901795,1757623834035,-1885.45,0.00027397,7]
[384901796,1757623834044,-400.0,0.00027397,7]
[384901797,1757623834053,-251.50426374,0.00027397,7]
[384901798,1757623834076,-148.49573626,0.00027397,7]
[384901799,1757623834086,-400.0,0.00027397,7]
[384901800,1757623834095,-13.19012731,0.00027397,7]
[384901821,1757623838247,-486.80987269,0.00027397,7]
[384901822,1757623838256,-400.0,0.00027397,7]
[384901823,1757623838266,-69.73271079,0.00027397,7]
[384901889,1757623839312,-80.26728921,0.00027397,7]
[384901891,1757623839321,-614.89,0.00027397,7]
[384901893,1757623839330,-500.0,0.00027397,7]
[384901895,1757623839339,-150.0,0.00027397,7]
[384901897,1757623839347,-150.0,0.00027397,7]
[384901899,1757623839356,-500.0,0.00027397,7]
[384901901,1757623839365,-400.0,0.00027397,7]
[384901903,1757623839375,-150.0,0.00027397,7]
[384901905,1757623839384,-150.0,0.00027397,7]
[384901907,1757623839393,-150.0,0.00027397,7]
[384901909,1757623839402,-150.0,0.00027397,7]
[384901911,1757623839411,-150.0,0.00027397,7]
[384901913,1757623839421,-400.0,0.00027397,7]
[384901915,1757623839431,-400.0,0.00027397,7]
[384901917,1757623839440,-527.41,0.00027397,7]
[384901919,1757623839449,-400.0,0.00027397,7]
[384901921,1757623839458,-414.52,0.00027397,7]
[384901923,1757623839467,-400.0,0.00027397,7]
[384901925,1757623839476,-400.0,0.00027397,7]
[384901927,1757623839486,-539.99,0.00027397,7]
[384901929,1757623839496,-400.0,0.00027397,7]
[384901931,1757623839505,-400.0,0.00027397,7]
[384901933,1757623839514,-151.0,0.00027397,7]
[384901935,1757623839523,-400.0,0.00027397,7]
[384901937,1757623839532,-400.0,0.00027397,7]
[384901939,1757623839541,-400.0,0.00027397,7]
[384901941,1757623839550,-400.0,0.00027397,7]
[384901943,1757623839559,-400.0,0.00027397,7]
[384901945,1757623839568,-1289.6,0.00027397,7]
[384901947,1757623839577,-400.0,0.00027397,7]
[384901949,1757623839587,-300.0,0.00027397,7]
[384901951,1757623839598,-400.0,0.00027397,7]
[384901953,1757623839608,-400.0,0.00027397,7]
[384901955,1757623839617,-400.0,0.00027397,7]
[384901957,1757623839627,-400.0,0.00027397,7]
[384901959,1757623839639,-400.0,0.00027397,7]
[384901961,1757623839647,-400.0,0.00027397,7]
[384901963,1757623839656,-500.0,0.00027397,2]
[384901965,1757623839665,-536.15,0.00027397,7]
[384901967,1757623839674,-500.0,0.00027397,2]
[384901969,1757623839684,-500.0,0.00027397,2]
[384901971,1757623839694,-500.0,0.00027397,2]
[384901973,1757623839704,-500.0,0.00027397,2]
[384901975,1757623839713,-500.0,0.00027397,2]
[384901977,1757623839722,-500.0,0.00027397,2]
[384901979,1757623839731,-500.0,0.00027397,2]
[384901981,1757623839740,-400.0,0.00027397,7]
[384901983,1757623839749,-500.0,0.00027397,2]
[384901985,1757623839758,-500.0,0.00027397,2]
[384901987,1757623839768,-500.0,0.00027397,2]
[384901989,1757623839777,-1789.37,0.00027397,7]
[384901991,1757623839786,-400.0,0.00027397,7]
[384901993,1757623839795,-500.0,0.00027397,7]
[384901995,1757623839804,-500.0,0.00027397,7]
[384901997,1757623839813,-450.2,0.00027397,7]
[384901999,1757623839822,-500.0,0.00027397,7]
[384902000,1757623839831,-400.0,0.00027397,7]
[384902001,1757623839840,-400.0,0.00027397,7]
[384902002,1757623839849,-400.0,0.00027397,7]
[384902003,1757623839858,-400.0,0.00027397,7]
[384902004,1757623839867,-1491.59,0.00027397,7]
[384902005,1757623839878,-503.16454626,0.00027397,7]
[384902006,1757623839887,-400.0,0.00027397,7]
[384902007,1757623839896,-400.0,0.00027397,7]
[384902008,1757623839905,-808.48,0.00027397,7]
[384902009,1757623839915,-922.93,0.00027397,7]
[384902010,1757623839924,-400.0,0.00027397,7]
[384902012,1757623839933,-1995.0,0.00027397,7]
[384902014,1757623839942,-400.0,0.00027397,7]
[384902016,1757623839951,-400.0,0.00027397,7]
[384902018,1757623839960,-400.0,0.00027397,7]
[384902020,1757623839969,-400.0,0.00027397,7]
[384902022,1757623839978,-400.0,0.00027397,7]
[384902024,1757623839987,-500.0,0.00027397,7]
[384902026,1757623839996,-1300.33,0.00027397,7]
[384902028,1757623840005,-400.0,0.00027397,7]
[384902030,1757623840014,-1478.02,0.00027397,7]
[384902032,1757623840023,-446.21,0.00027397,7]
[384902034,1757623840033,-400.0,0.00027397,7]
[384902035,1757623840042,-400.0,0.00027397,7]
[384902062,1757623840283,-401.68411109,0.00027397,7]
[384902064,1757623840292,-400.0,0.00027397,7]
[384902066,1757623840302,-400.0,0.00027397,7]
[384902068,1757623840311,-400.0,0.00027397,7]
[384902070,1757623840321,-400.0,0.00027397,7]
[384902072,1757623840330,-400.0,0.00027397,7]
[384902074,1757623840340,-400.0,0.00027397,7]
[384902076,1757623840352,-824.59,0.00027397,7]
[384902079,1757623840363,-400.0,0.00027397,7]
[384902080,1757623840375,-708.72,0.00027397,7]
[384902083,1757623840386,-1314.36,0.00027397,7]
[384902085,1757623840395,-400.0,0.00027397,7]
[384902087,1757623840405,-813.09,0.00027397,7]
[384902088,1757623840414,-400.0,0.00027397,7]
[384902090,1757623840424,-807.1,0.00027397,7]
[384902092,1757623840433,-646.05,0.00027397,7]
[384902094,1757623840442,-400.0,0.00027397,7]
[384902096,1757623840451,-400.0,0.00027397,7]
[384902098,1757623840461,-1004.33,0.00027397,7]
[384902100,1757623840470,-400.0,0.00027397,7]
[384902102,1757623840480,-400.0,0.00027397,7]
[384902104,1757623840489,-400.0,0.00027397,7]
[384902106,1757623840498,-400.0,0.00027397,7]
[384902108,1757623840506,-400.0,0.00027397,7]
[384902110,1757623840515,-441.02,0.00027397,7]
[384902112,1757623840524,-698.97,0.00027397,7]
[384902114,1757623840534,-400.0,0.00027397,7]
[384902116,1757623840543,-917.37,0.00027397,7]
[384902118,1757623840552,-400.0,0.00027397,7]
[384902120,1757623840562,-400.0,0.00027397,7]
[384902122,1757623840571,-400.0,0.00027397,7]
[384902124,1757623840580,-658.85,0.00027397,7]
[384902127,1757623840598,-688.87,0.00027397,7]
[384902129,1757623840610,-400.0,0.00027397,7]
[384902131,1757623840621,-410.91,0.00027397,7]
[384902133,1757623840631,-590.37,0.00027397,7]
[384902135,1757623840640,-400.0,0.00027397,7]
[384902137,1757623840650,-1500.13,0.00027397,7]
[384902139,1757623840659,-400.0,0.00027397,7]
[384902141,1757623840669,-400.0,0.00027397,7]
[384902143,1757623840679,-400.0,0.00027397,7]
[384902145,1757623840689,-1262.52,0.00027397,7]
[384902147,1757623840698,-400.0,0.00027397,7]
[384902149,1757623840708,-400.0,0.00027397,7]
[384902152,1757623840718,-400.0,0.00027397,7]
[384902154,1757623840728,-349.03116562,0.00027397,7]
[384902156,1757623840737,-400.0,0.00027397,7]
[384902158,1757623840747,-464.01,0.00027397,7]
[384902160,1757623840756,-641.54,0.00027397,7]
[384902162,1757623840765,-400.0,0.00027397,7]
[384902164,1757623840774,-400.0,0.00027397,7]
[384902166,1757623840784,-400.0,0.00027397,7]
[384902168,1757623840793,-400.0,0.00027397,7]
[384902170,1757623840803,-400.0,0.00027397,7]
[384902172,1757623840812,-400.0,0.00027397,7]
[384902174,1757623840823,-400.0,0.00027397,7]
[384902176,1757623840832,-400.0,0.00027397,7]
[384902178,1757623840842,-639.93,0.00027397,7]
[384902180,1757623840851,-404.73087559,0.00027397,7]
[384902182,1757623840861,-400.0,0.00027397,7]
[384902184,1757623840870,-400.0,0.00027397,7]
[384902186,1757623840880,-512.09,0.00027397,7]
[384902188,1757623840890,-400.0,0.00027397,7]
[384902190,1757623840899,-406.80344045,0.00027397,7]
[384902192,1757623840909,-413.29629479,0.00027397,7]
[384902194,1757623840919,-400.0,0.00027397,7]
[384902196,1757623840928,-400.0,0.00027397,7]
[384902198,1757623840938,-400.0,0.00027397,7]
[384902200,1757623840947,-1152.57,0.00027397,7]
[384902202,1757623840957,-400.0,0.00027397,7]
[384902204,1757623840967,-400.0,0.00027397,7]
[384902206,1757623840977,-400.0,0.00027397,7]
[384902208,1757623840986,-400.0,0.00027397,7]
[384902210,1757623840995,-400.0,0.00027397,7]
[384902212,1757623841005,-400.0,0.00027397,7]
[384902214,1757623841014,-400.0,0.00027397,7]
[384902217,1757623841024,-745.67,0.00027397,7]
[384902219,1757623841034,-400.0,0.00027397,7]
[384902221,1757623841043,-1294.88,0.00027397,7]
[384902223,1757623841053,-1313.48,0.00027397,7]
[384902224,1757623841062,-1451.54,0.00027397,7]
[384902227,1757623841072,-400.0,0.00027397,7]
[384902229,1757623841082,-1023.32,0.00027397,7]
[384902231,1757623841092,-400.0,0.00027397,7]
[384902233,1757623841101,-400.0,0.00027397,7]
[384902235,1757623841111,-400.0,0.00027397,7]
[384902237,1757623841121,-400.0,0.00027397,7]
[384902239,1757623841130,-407.33,0.00027397,7]
[384902241,1757623841140,-426.32,0.00027397,7]
[384902243,1757623841149,-400.0,0.00027397,7]
[384902245,1757623841158,-400.0,0.00027397,7]
[384902247,1757623841167,-400.0,0.00027397,7]
[384902249,1757623841177,-400.0,0.00027397,7]
[384902251,1757623841187,-400.0,0.00027397,7]
[384902253,1757623841197,-400.0,0.00027397,7]
[384902255,1757623841206,-400.0,0.00027397,7]
[384902257,1757623841215,-400.0,0.00027397,7]
[384902259,1757623841224,-816.94,0.00027397,7]
[384902261,1757623841234,-685.9,0.00027397,7]
[384902263,1757623841243,-400.0,0.00027397,7]
[384902265,1757623841253,-400.0,0.00027397,7]
[384902267,1757623841262,-400.0,0.00027397,7]
[384902269,1757623841271,-1632.6,0.00027397,7]
[384902271,1757623841281,-400.0,0.00027397,7]
[384902273,1757623841290,-400.0,0.00027397,7]
[384902275,1757623841300,-400.0,0.00027397,7]
[384902277,1757623841309,-1278.56,0.00027397,7]
[384902279,1757623841320,-400.0,0.00027397,7]
[384902281,1757623841329,-1384.98,0.00027397,7]
[384902283,1757623841339,-1000.0,0.00027397,7]
[384902285,1757623841348,-409.5474621,0.00027397,7]
[384902287,1757623841358,-400.0,0.00027397,7]
[384902289,1757623841367,-400.0,0.00027397,7]
[384902292,1757623841378,-400.0,0.00027397,7]
[384902294,1757623841387,-400.0,0.00027397,7]
[384902295,1757623841396,-629.24,0.00027397,7]
[384902298,1757623841407,-400.0,0.00027397,7]
[384902300,1757623841416,-400.0,0.00027397,7]
[384902302,1757623841425,-1140.93,0.00027397,7]
[384902304,1757623841435,-1439.84,0.00027397,7]
[384902306,1757623841446,-400.0,0.00027397,7]
[384902308,1757623841455,-400.0,0.00027397,7]
[384902310,1757623841464,-400.0,0.00027397,7]
[384902312,1757623841474,-400.0,0.00027397,7]
[384902314,1757623841483,-450.58,0.00027397,7]
[384902316,1757623841493,-400.0,0.00027397,7]
[384902318,1757623841502,-400.0,0.00027397,7]
[384902320,1757623841512,-400.0,0.00027397,7]
[384902322,1757623841521,-549.52,0.00027397,7]
[384902324,1757623841531,-400.0,0.00027397,7]
[384902326,1757623841540,-401.23,0.00027397,7]
[384902328,1757623841549,-400.0,0.00027397,7]
[384902330,1757623841558,-400.0,0.00027397,7]
[384902332,1757623841568,-575.1,0.00027397,7]
[384902334,1757623841577,-408.50032564,0.00027397,7]
[384902336,1757623841587,-400.0,0.00027397,7]
[384902338,1757623841598,-151.0,0.00027397,7]
[384902340,1757623841610,-400.0,0.00027397,7]
[384902342,1757623841619,-613.41,0.00027397,7]
[384902344,1757623841629,-400.0,0.00027397,7]
[384902346,1757623841638,-977.8,0.00027397,7]
[384902348,1757623841650,-1393.22,0.00027397,7]
[384902351,1757623841663,-400.0,0.00027397,7]
[384902353,1757623841672,-1247.29,0.00027397,7]
[384902355,1757623841683,-1818.6,0.00027397,7]
[384902357,1757623841693,-475.61,0.00027397,7]
[384902359,1757623841702,-423.44413921,0.00027397,7]
[384902361,1757623841711,-1160.46,0.00027397,7]
[384902363,1757623841721,-400.0,0.00027397,7]
[384902365,1757623841731,-400.0,0.00027397,7]
[384902367,1757623841740,-400.0,0.00027397,7]
[384902369,1757623841750,-400.0,0.00027397,7]
[384902372,1757623841759,-400.0,0.00027397,7]
[384902374,1757623841770,-400.0,0.00027397,7]
[384902376,1757623841780,-400.0,0.00027397,7]
[384902378,1757623841789,-637.6,0.00027397,7]
[384902380,1757623841799,-400.0,0.00027397,7]
[384902382,1757623841809,-2487.37,0.00027397,7]
[384902384,1757623841819,-400.0,0.00027397,7]
[384902386,1757623841828,-1450.13,0.00027397,7]
[384902388,1757623841838,-400.0,0.00027397,7]
[384902390,1757623841847,-400.0,0.00027397,7]
[384902392,1757623841857,-1502.37,0.00027397,7]
[384902394,1757623841867,-2978.21,0.00027397,7]
[384902396,1757623841878,-400.0,0.00027397,7]
[384902398,1757623841887,-400.0,0.00027397,7]
[384902400,1757623841896,-448.75,0.00027397,7]
[384902402,1757623841906,-400.0,0.00027397,7]
[384902404,1757623841916,-400.0,0.00027397,7]
[384902406,1757623841925,-400.0,0.00027397,7]
[384902408,1757623841935,-400.0,0.00027397,7]
[384902410,1757623841944,-400.0,0.00027397,7]
[384902412,1757623841954,-400.0,0.00027397,7]
[384902414,1757623841963,-400.0,0.00027397,7]
[384902416,1757623841973,-400.0,0.00027397,7]
[384902418,1757623841982,-400.0,0.00027397,7]
[384902420,1757623841991,-815.74,0.00027397,7]
[384902423,1757623842001,-766.57,0.00027397,7]
[384902425,1757623842011,-400.0,0.00027397,7]
[384902426,1757623842020,-2298.32,0.00027397,7]
[384902427,1757623842031,-400.0,0.00027397,7]
[384902428,1757623842042,-400.0,0.00027397,7]
[384902429,1757623842054,-691.25,0.00027397,7]
[384902430,1757623842066,-1915.56,0.00027397,7]
[384902431,1757623842076,-400.0,0.00027397,7]
[384902432,1757623842085,-400.0,0.00027397,7]
[384902433,1757623842095,-709.67,0.00027397,7]
[384902434,1757623842104,-2109.41,0.00027397,7]
[384902436,1757623842114,-540.07,0.00027397,7]
[384902438,1757623842127,-2893.59,0.00027397,7]
[384902440,1757623842137,-654.56,0.00027397,7]
[384902442,1757623842147,-400.0,0.00027397,7]
[384902444,1757623842156,-400.0,0.00027397,7]
[384902446,1757623842166,-2159.01,0.00027397,7]
[384902448,1757623842176,-400.0,0.00027397,7]
[384902450,1757623842186,-400.0,0.00027397,7]
[384902452,1757623842195,-946.68,0.00027397,7]
[384902455,1757623842204,-400.0,0.00027397,7]
[384902457,1757623842214,-267.33106053,0.00027397,7]
[384902459,1757623842223,-422.83256773,0.00027397,7]
[384902461,1757623842233,-623.48,0.00027397,7]
[384902462,1757623842243,-882.98,0.00027397,7]
[384902464,1757623842252,-400.0,0.00027397,7]
[384902467,1757623842261,-400.0,0.00027397,7]
[384902469,1757623842271,-687.32,0.00027397,7]
[384902471,1757623842280,-868.36,0.00027397,7]
[384902473,1757623842290,-935.12,0.00027397,7]
[384902475,1757623842300,-400.0,0.00027397,7]
[384902477,1757623842309,-1683.88,0.00027397,7]
[384902479,1757623842318,-525.92,0.00027397,7]
[384902481,1757623842328,-444.03,0.00027397,7]
[384902483,1757623842339,-400.0,0.00027397,7]
[384902485,1757623842348,-400.0,0.00027397,7]
[384902487,1757623842357,-2448.18,0.00027397,7]
[384902489,1757623842367,-400.0,0.00027397,7]
[384902491,1757623842376,-400.0,0.00027397,7]
[384902493,1757623842386,-400.0,0.00027397,7]
[384902495,1757623842395,-400.0,0.00027397,7]
[384902497,1757623842405,-400.0,0.00027397,7]
[384902499,1757623842414,-1904.7,0.00027397,7]
[384902501,1757623842424,-400.0,0.00027397,7]
[384902503,1757623842433,-400.0,0.00027397,7]
[384902505,1757623842442,-400.0,0.00027397,7]
[384902507,1757623842452,-1033.42,0.00027397,7]
[384902509,1757623842461,-400.0,0.00027397,7]
[384902511,1757623842470,-400.0,0.00027397,7]
[384902513,1757623842480,-400.0,0.00027397,7]
[384902515,1757623842489,-400.0,0.00027397,7]
[384902517,1757623842498,-400.0,0.00027397,7]
[384902519,1757623842508,-1605.42,0.00027397,7]
[384902521,1757623842517,-1224.68,0.00027397,7]
[384902523,1757623842527,-500.0,0.00027397,2]
[384902525,1757623842538,-536.07926288,0.00027397,2]
[384902527,1757623842548,-400.0,0.00027397,7]
[384902529,1757623842558,-400.0,0.00027397,7]
[384902532,1757623842571,-400.0,0.00027397,7]
[384902534,1757623842582,-400.0,0.00027397,7]
[384902536,1757623842592,-400.0,0.00027397,7]
[384902538,1757623842603,-653.73,0.00027397,7]
[384902540,1757623842613,-1140.18,0.00027397,7]
[384902542,1757623842623,-1213.24,0.00027397,7]
[384902544,1757623842632,-400.0,0.00027397,7]
[384902546,1757623842643,-1307.87,0.00027397,7]
[384902548,1757623842652,-400.0,0.00027397,7]
[384902550,1757623842662,-810.7,0.00027397,7]
[384902552,1757623842672,-400.0,0.00027397,7]
[384902554,1757623842682,-400.0,0.00027397,7]
[384902556,1757623842693,-400.0,0.00027397,7]
[384902558,1757623842703,-942.12,0.00027397,7]
[384902560,1757623842713,-684.09,0.00027397,7]
[384902562,1757623842723,-400.0,0.00027397,7]
[384902564,1757623842732,-1702.41,0.00027397,7]
[384902567,1757623842743,-400.0,0.00027397,7]
[384902569,1757623842753,-400.0,0.00027397,7]
[384902571,1757623842762,-400.0,0.00027397,7]
[384902573,1757623842771,-792.98,0.00027397,7]
[384902575,1757623842780,-400.0,0.00027397,7]
[384902577,1757623842790,-400.0,0.00027397,7]
[384902578,1757623842805,-562.3,0.00027397,7]
[384902581,1757623842815,-400.0,0.00027397,7]
[384902583,1757623842824,-151.0,0.00027397,7]
[384902585,1757623842834,-439.14763389,0.00027397,7]
[384902587,1757623842843,-1470.47,0.00027397,7]
[384902589,1757623842853,-400.0,0.00027397,7]
[384902591,1757623842864,-400.0,0.00027397,7]
[384902593,1757623842874,-400.0,0.00027397,7]
[384902595,1757623842884,-2399.47,0.00027397,7]
[384902597,1757623842893,-2933.91,0.00027397,7]
[384902599,1757623842903,-1829.13,0.00027397,7]
[384902601,1757623842912,-2421.57,0.00027397,7]
[384902603,1757623842922,-400.0,0.00027397,7]
[384902605,1757623842931,-521.84,0.00027397,7]
[384902607,1757623842941,-400.0,0.00027397,7]
[384902609,1757623842950,-796.47,0.00027397,7]
[384902611,1757623842960,-1801.68,0.00027397,7]